[Event "Titled Tuesday Blitz February 22 Early 2022"]
[White "Petesch, Gabriel"]
[Black "Sargissyan, Sargis"]
[WhiteFideId "2032465"]
[BlackFideId "13303210"]
[WhiteElo "2374"]
[BlackElo "2174"]
[Result "0-1"]
[Round "09"]
[TimeControl "180+1"]
[Date "2022.02.22"]
[WhiteClock "0:00:15"]
[BlackClock "0:00:17"]

1. Nf3 {[%clk 0:02:56]}  Nf6 {[%clk 0:02:58]} 2. c3 {[%clk 0:02:57]}  g6 {[%clk 0:02:54]} 3. b3 {[%clk 0:02:58]}  Bg7 {[%clk 0:02:54]} 4. Bb2 {[%clk 0:02:58]}  O-O {[%clk 0:02:55]} 5. e3 {[%clk 0:02:58]}  d6 {[%clk 0:02:51]} 6. Be2 {[%clk 0:02:59]}  e5 {[%clk 0:02:51]} 7. O-O {[%clk 0:03:00]}  e4 {[%clk 0:02:51]} 8. d4 {[%clk 0:03:01]}  exf3 {[%clk 0:02:50]} 9. Bxf3 {[%clk 0:03:02]}  d5 {[%clk 0:02:49]} 10. Nd2 {[%clk 0:03:01]}  c6 {[%clk 0:02:49]} 11. Re1 {[%clk 0:02:58]}  Bf5 {[%clk 0:02:48]} 12. Rc1 {[%clk 0:02:58]}  Nbd7 {[%clk 0:02:45]} 13. c4 {[%clk 0:02:53]}  Re8 {[%clk 0:02:38]} 14. Nf1 {[%clk 0:02:44]}  Ne4 {[%clk 0:02:36]} 15. Be2 {[%clk 0:02:41]}  Qh4 {[%clk 0:02:30]} 16. g3 {[%clk 0:02:38]}  Qe7 {[%clk 0:02:10]} 17. c5 {[%clk 0:02:30]}  h5 {[%clk 0:02:06]} 18. b4 {[%clk 0:02:25]}  Ndf6 {[%clk 0:01:56]} 19. f3 {[%clk 0:02:07]}  Bh3 {[%clk 0:01:40]} 20. fxe4 {[%clk 0:01:58]}  Nxe4 {[%clk 0:01:40]} 21. Bf3 {[%clk 0:01:53]}  Bh6 {[%clk 0:01:38]} 22. Bg2 {[%clk 0:01:37]}  Qd7 {[%clk 0:01:30]} 23. Rc2 {[%clk 0:01:31]}  h4 {[%clk 0:01:24]} 24. Bc1 {[%clk 0:01:18]}  Bxg2 {[%clk 0:00:56]} 25. Rxg2 {[%clk 0:01:19]}  h3 {[%clk 0:00:52]} 26. Rc2 {[%clk 0:01:18]}  Re7 {[%clk 0:00:49]} 27. Nd2 {[%clk 0:01:16]}  Rae8 {[%clk 0:00:38]} 28. Qf3 {[%clk 0:01:03]}  Ng5 {[%clk 0:00:34]} 29. Qf2 {[%clk 0:01:02]}  Qg4 {[%clk 0:00:31]} 30. Rc3 {[%clk 0:00:58]}  Ne4 {[%clk 0:00:24]} 31. Nxe4 {[%clk 0:00:58]}  Rxe4 {[%clk 0:00:25]} 32. Bd2 {[%clk 0:00:55]}  Bg7 {[%clk 0:00:16]} 33. Rcc1 {[%clk 0:00:50]}  Bh6 {[%clk 0:00:12]} 34. Re2 {[%clk 0:00:42]}  R8e6 {[%clk 0:00:12]} 35. Rce1 {[%clk 0:00:41]}  Bg7 {[%clk 0:00:10]} 36. Bc3 {[%clk 0:00:39]}  Rf6 {[%clk 0:00:10]} 37. Qxf6 {[%clk 0:00:33]}  Bxf6 {[%clk 0:00:11]} 38. a3 {[%clk 0:00:33]}  Bg5 {[%clk 0:00:11]} 39. Bd2 {[%clk 0:00:32]}  Qe6 {[%clk 0:00:10]} 40. Kf2 {[%clk 0:00:31]}  Qf5+ {[%clk 0:00:09]} 41. Kg1 {[%clk 0:00:31]}  a6 {[%clk 0:00:09]} 42. Rf2 {[%clk 0:00:31]}  Qe6 {[%clk 0:00:09]} 43. Rfe2 {[%clk 0:00:32]}  Bf6 {[%clk 0:00:08]} 44. Kf2 {[%clk 0:00:31]}  Bg7 {[%clk 0:00:07]} 45. Bc1 {[%clk 0:00:31]}  Qf5+ {[%clk 0:00:07]} 46. Kg1 {[%clk 0:00:31]}  Qe6 {[%clk 0:00:06]} 47. Kf2 {[%clk 0:00:30]}  Qf6+ {[%clk 0:00:06]} 48. Kg1 {[%clk 0:00:30]}  Qf5 {[%clk 0:00:06]} 49. Rf2 {[%clk 0:00:29]}  Qe6 {[%clk 0:00:06]} 50. Rd1 {[%clk 0:00:18]}  Rxe3 {[%clk 0:00:06]} 51. Bxe3 {[%clk 0:00:19]}  Qxe3 {[%clk 0:00:06]} 52. Kf1 {[%clk 0:00:20]}  Bxd4 {[%clk 0:00:06]} 53. Rf4 {[%clk 0:00:19]}  Be5 {[%clk 0:00:06]} 54. Rf2 {[%clk 0:00:17]}  Qxa3 {[%clk 0:00:05]} 55. Re2 {[%clk 0:00:17]}  Bf6 {[%clk 0:00:05]} 56. Rf2 {[%clk 0:00:16]}  Kg7 {[%clk 0:00:05]} 57. Rf4 {[%clk 0:00:13]}  Qb3 {[%clk 0:00:05]} 58. Re1 {[%clk 0:00:12]}  Qd3+ {[%clk 0:00:04]} 59. Re2 {[%clk 0:00:11]}  Bc3 {[%clk 0:00:04]} 60. Kf2 {[%clk 0:00:09]}  g5 {[%clk 0:00:04]} 61. Re3 {[%clk 0:00:05]}  Bd4 {[%clk 0:00:04]} 62. Rxd4 {[%clk 0:00:05]}  Qxd4 {[%clk 0:00:05]} 63. Kf3 {[%clk 0:00:06]}  Qxe3+ {[%clk 0:00:05]} 64. Kxe3 {[%clk 0:00:07]}  f5 {[%clk 0:00:05]} 65. Kd4 {[%clk 0:00:07]}  Kf6 {[%clk 0:00:06]} 66. Ke3 {[%clk 0:00:06]}  Ke5 {[%clk 0:00:06]} 67. Kd3 {[%clk 0:00:06]}  d4 {[%clk 0:00:07]} 68. Kc4 {[%clk 0:00:06]}  Ke4 {[%clk 0:00:07]} 69. Kb3 {[%clk 0:00:05]}  d3 {[%clk 0:00:08]} 70. Ka4 {[%clk 0:00:06]}  Ke3 {[%clk 0:00:08]} 71. Ka5 {[%clk 0:00:06]}  d2 {[%clk 0:00:09]} 72. Kb6 {[%clk 0:00:07]}  d1=Q {[%clk 0:00:09]} 73. Kxb7 {[%clk 0:00:08]}  Qb3 {[%clk 0:00:10]} 74. Kxc6 {[%clk 0:00:09]}  Qxb4 {[%clk 0:00:11]} 75. Kd6 {[%clk 0:00:09]}  Qxc5+ {[%clk 0:00:11]} 76. Kxc5 {[%clk 0:00:10]}  Kf3 {[%clk 0:00:11]} 77. Kd5 {[%clk 0:00:10]}  Kg2 {[%clk 0:00:12]} 78. Ke5 {[%clk 0:00:11]}  Kxh2 {[%clk 0:00:12]} 79. Kxf5 {[%clk 0:00:11]}  Kxg3 {[%clk 0:00:13]} 80. Kxg5 {[%clk 0:00:12]}  h2 {[%clk 0:00:14]} 81. Kf5 {[%clk 0:00:13]}  h1=Q {[%clk 0:00:14]} 82. Ke5 {[%clk 0:00:13]}  a5 {[%clk 0:00:15]} 83. Kd4 {[%clk 0:00:14]}  a4 {[%clk 0:00:16]} 84. Kc5 {[%clk 0:00:15]}  a3 {[%clk 0:00:17]} 0-1


[Site "https://www.chess.com"]

[Event "Titled Tuesday Blitz February 22 Early 2022"]
[White "Petrosyan, Manuel"]
[Black "Goryachkina, Aleksandra"]
[WhiteFideId "13300857"]
[BlackFideId "4147103"]
[WhiteElo "2592"]
[BlackElo "2426"]
[Result "0-1"]
[Round "09"]
[TimeControl "180+1"]
[Date "2022.02.22"]
[WhiteClock "0:00:02"]
[BlackClock "0:00:43"]

1. e4 {[%clk 0:03:00]}  c5 {[%clk 0:02:57]} 2. Nf3 {[%clk 0:03:01]}  e6 {[%clk 0:02:57]} 3. d4 {[%clk 0:03:00]}  cxd4 {[%clk 0:02:58]} 4. Nxd4 {[%clk 0:03:01]}  Nf6 {[%clk 0:02:58]} 5. Nc3 {[%clk 0:02:57]}  Nc6 {[%clk 0:02:58]} 6. Nxc6 {[%clk 0:02:55]}  bxc6 {[%clk 0:02:58]} 7. e5 {[%clk 0:02:55]}  Nd5 {[%clk 0:02:58]} 8. Ne4 {[%clk 0:02:55]}  Qc7 {[%clk 0:02:57]} 9. f4 {[%clk 0:02:55]}  f5 {[%clk 0:02:54]} 10. Nf2 {[%clk 0:02:37]}  Bb7 {[%clk 0:02:26]} 11. c4 {[%clk 0:02:31]}  Nb6 {[%clk 0:02:07]} 12. Qc2 {[%clk 0:01:56]}  c5 {[%clk 0:02:05]} 13. b3 {[%clk 0:01:39]}  Be7 {[%clk 0:02:03]} 14. Bb2 {[%clk 0:01:38]}  a5 {[%clk 0:01:59]} 15. a4 {[%clk 0:01:35]}  O-O {[%clk 0:01:51]} 16. O-O-O {[%clk 0:01:31]}  d5 {[%clk 0:01:33]} 17. cxd5 {[%clk 0:00:42]}  Bxd5 {[%clk 0:01:28]} 18. Bb5 {[%clk 0:00:32]}  c4 {[%clk 0:01:21]} 19. Kb1 {[%clk 0:00:22]}  Rfc8 {[%clk 0:01:14]} 20. Rhe1 {[%clk 0:00:17]}  Qb7 {[%clk 0:01:10]} 21. Bd4 {[%clk 0:00:10]}  cxb3 {[%clk 0:01:09]} 22. Qb2 {[%clk 0:00:09]}  Nc4 {[%clk 0:01:07]} 23. Bxc4 {[%clk 0:00:09]}  Rxc4 {[%clk 0:01:07]} 24. Nd3 {[%clk 0:00:08]}  Rxa4 {[%clk 0:01:06]} 25. Bc5 {[%clk 0:00:08]}  Ra2 {[%clk 0:01:04]} 26. Qd4 {[%clk 0:00:07]}  b2 {[%clk 0:01:03]} 27. Bxe7 {[%clk 0:00:02]}  Qxe7 {[%clk 0:00:50]} 28. Nxb2 {[%clk 0:00:02]}  Rb8 {[%clk 0:00:46]} 29. Rd2 {[%clk 0:00:01]}  Qa3 {[%clk 0:00:44]} 30. Ree2 {[%clk 0:00:02]}  Ra1+ {[%clk 0:00:43]} 0-1


[Site "https://www.chess.com"]

[Event "Titled Tuesday Blitz February 22 Early 2022"]
[White "Popadic, Dragan"]
[Black "Pinheiro, Iung Alicio de O."]
[WhiteFideId "913650"]
[BlackFideId "2104350"]
[WhiteElo "2199"]
[BlackElo "2598"]
[Result "0-1"]
[Round "09"]
[TimeControl "180+1"]
[Date "2022.02.22"]
[WhiteClock "0:01:48"]
[BlackClock "0:00:58"]

1. e4 {[%clk 0:03:00]}  c5 {[%clk 0:02:58]} 2. Nc3 {[%clk 0:03:00]}  a6 {[%clk 0:02:57]} 3. d3 {[%clk 0:02:59]}  b5 {[%clk 0:02:57]} 4. g4 {[%clk 0:02:59]}  Bb7 {[%clk 0:02:57]} 5. Bg2 {[%clk 0:02:59]}  e6 {[%clk 0:02:56]} 6. Nh3 {[%clk 0:02:59]}  d5 {[%clk 0:02:54]} 7. O-O {[%clk 0:02:58]}  b4 {[%clk 0:02:33]} 8. Ne2 {[%clk 0:02:58]}  dxe4 {[%clk 0:02:30]} 9. Ng3 {[%clk 0:02:58]}  Nc6 {[%clk 0:02:22]} 10. Nxe4 {[%clk 0:02:57]}  Nf6 {[%clk 0:02:22]} 11. Nxf6+ {[%clk 0:02:53]}  gxf6 {[%clk 0:02:16]} 12. a3 {[%clk 0:02:50]}  Qc7 {[%clk 0:02:10]} 13. c3 {[%clk 0:02:49]}  Bd6 {[%clk 0:02:05]} 14. f4 {[%clk 0:02:42]}  Rg8 {[%clk 0:01:58]} 15. Kh1 {[%clk 0:02:40]}  O-O-O {[%clk 0:01:56]} 16. axb4 {[%clk 0:02:39]}  cxb4 {[%clk 0:01:56]} 17. Be3 {[%clk 0:02:36]}  Ne7 {[%clk 0:01:41]} 18. Rg1 {[%clk 0:02:29]}  Nd5 {[%clk 0:01:28]} 19. Bd2 {[%clk 0:02:16]}  Bxf4 {[%clk 0:01:10]} 20. c4 {[%clk 0:02:09]}  Ne3 {[%clk 0:01:06]} 21. Qe2 {[%clk 0:01:51]}  Nxg2 {[%clk 0:01:02]} 22. Rxg2 {[%clk 0:01:48]}  Bxd2 {[%clk 0:00:58]} 23. Qxd2 {[%clk 0:01:48]}  Rxg4 {[%clk 0:00:58]} 0-1


[Site "https://www.chess.com"]

[Event "Titled Tuesday Blitz February 22 Early 2022"]
[White "Rodchenkov, Vitaly"]
[Black "Przybylski, Wojciech"]
[WhiteFideId "4152964"]
[BlackFideId "1117599"]
[WhiteElo "2337"]
[BlackElo "2133"]
[Result "0-1"]
[Round "09"]
[TimeControl "180+1"]
[Date "2022.02.22"]
[WhiteClock "0:00:34"]
[BlackClock "0:00:08"]

1. Nf3 {[%clk 0:03:00]}  Nf6 {[%clk 0:02:59]} 2. c4 {[%clk 0:03:00]}  c6 {[%clk 0:02:58]} 3. b3 {[%clk 0:02:56]}  d5 {[%clk 0:02:57]} 4. Bb2 {[%clk 0:02:56]}  Bg4 {[%clk 0:02:56]} 5. Ne5 {[%clk 0:02:54]}  Bf5 {[%clk 0:02:55]} 6. g3 {[%clk 0:02:52]}  Nbd7 {[%clk 0:02:53]} 7. Bg2 {[%clk 0:02:52]}  h5 {[%clk 0:02:52]} 8. O-O {[%clk 0:02:50]}  h4 {[%clk 0:02:51]} 9. d3 {[%clk 0:02:47]}  Qc7 {[%clk 0:02:46]} 10. Nxd7 {[%clk 0:02:44]}  Qxd7 {[%clk 0:02:42]} 11. Nd2 {[%clk 0:02:44]}  Bh3 {[%clk 0:02:39]} 12. Nf3 {[%clk 0:02:41]}  hxg3 {[%clk 0:02:26]} 13. fxg3 {[%clk 0:02:40]}  Bxg2 {[%clk 0:02:19]} 14. Kxg2 {[%clk 0:02:40]}  Qh3+ {[%clk 0:02:16]} 15. Kg1 {[%clk 0:01:46]}  Ng4 {[%clk 0:02:14]} 16. Rf2 {[%clk 0:01:46]}  e6 {[%clk 0:01:57]} 17. cxd5 {[%clk 0:01:42]}  Nxf2 {[%clk 0:01:52]} 18. Kxf2 {[%clk 0:01:42]}  exd5 {[%clk 0:01:50]} 19. e4 {[%clk 0:01:40]}  dxe4 {[%clk 0:01:42]} 20. Qe2 {[%clk 0:01:40]}  O-O-O {[%clk 0:01:17]} 21. Qxe4 {[%clk 0:01:40]}  Bc5+ {[%clk 0:00:54]} 22. d4 {[%clk 0:01:39]}  Rhe8 {[%clk 0:00:36]} 23. Qf4 {[%clk 0:01:26]}  Bb6 {[%clk 0:00:24]} 24. Rc1 {[%clk 0:01:20]}  f6 {[%clk 0:00:23]} 25. b4 {[%clk 0:01:16]}  Qe6 {[%clk 0:00:21]} 26. b5 {[%clk 0:01:12]}  Qe2+ {[%clk 0:00:19]} 27. Kg1 {[%clk 0:01:09]}  Qxb2 {[%clk 0:00:18]} 28. bxc6 {[%clk 0:01:08]}  Bxd4+ {[%clk 0:00:17]} 29. Kh1 {[%clk 0:01:07]}  Be5 {[%clk 0:00:11]} 30. cxb7+ {[%clk 0:00:56]}  Kb8 {[%clk 0:00:11]} 31. Nxe5 {[%clk 0:00:46]}  Qxe5 {[%clk 0:00:09]} 32. Qf2 {[%clk 0:00:34]}  Qe4+ {[%clk 0:00:08]} 33. Kg1 {[%clk 0:00:34]}  Qe3 {[%clk 0:00:08]} 0-1


[Site "https://www.chess.com"]

[Event "Titled Tuesday Blitz February 22 Early 2022"]
[White "Safarli, Eltaj"]
[Black "Bluebaum, Matthias"]
[WhiteFideId "13402129"]
[BlackFideId "24651516"]
[WhiteElo "2634"]
[BlackElo "2550"]
[Result "1-0"]
[Round "09"]
[TimeControl "180+1"]
[Date "2022.02.22"]
[WhiteClock "0:00:20"]
[BlackClock "0:00:03"]

1. e4 {[%clk 0:03:00]}  c6 {[%clk 0:02:59]} 2. d4 {[%clk 0:02:59]}  d5 {[%clk 0:02:59]} 3. exd5 {[%clk 0:03:00]}  cxd5 {[%clk 0:02:59]} 4. c4 {[%clk 0:03:01]}  Nf6 {[%clk 0:02:59]} 5. Nc3 {[%clk 0:03:01]}  Nc6 {[%clk 0:02:59]} 6. Bg5 {[%clk 0:03:01]}  a6 {[%clk 0:02:45]} 7. Nf3 {[%clk 0:02:57]}  Be6 {[%clk 0:02:44]} 8. Be2 {[%clk 0:02:55]}  g6 {[%clk 0:02:41]} 9. Bxf6 {[%clk 0:02:51]}  exf6 {[%clk 0:02:41]} 10. c5 {[%clk 0:02:50]}  Bh6 {[%clk 0:02:41]} 11. O-O {[%clk 0:02:49]}  O-O {[%clk 0:02:41]} 12. a3 {[%clk 0:02:47]}  g5 {[%clk 0:02:41]} 13. b4 {[%clk 0:02:46]}  g4 {[%clk 0:02:40]} 14. Ne1 {[%clk 0:02:46]}  f5 {[%clk 0:02:41]} 15. f4 {[%clk 0:02:36]}  Qf6 {[%clk 0:02:32]} 16. Nc2 {[%clk 0:02:30]}  Bg7 {[%clk 0:02:32]} 17. Rc1 {[%clk 0:02:07]}  Nxd4 {[%clk 0:02:24]} 18. Nxd4 {[%clk 0:02:08]}  Qxd4+ {[%clk 0:02:25]} 19. Kh1 {[%clk 0:02:07]}  Rad8 {[%clk 0:02:22]} 20. Bd3 {[%clk 0:01:57]}  Qe3 {[%clk 0:02:11]} 21. Ne2 {[%clk 0:01:54]}  Rfe8 {[%clk 0:02:01]} 22. Ng3 {[%clk 0:01:53]}  d4 {[%clk 0:01:15]} 23. Rc2 {[%clk 0:01:51]}  Bb3 {[%clk 0:01:14]} 24. Nxf5 {[%clk 0:01:50]}  Qe6 {[%clk 0:00:53]} 25. Qxg4 {[%clk 0:01:50]}  Qf6 {[%clk 0:00:53]} 26. Re2 {[%clk 0:01:29]}  Rxe2 {[%clk 0:00:49]} 27. Qxe2 {[%clk 0:01:30]}  Be6 {[%clk 0:00:47]} 28. Nxg7 {[%clk 0:01:30]}  Qxg7 {[%clk 0:00:47]} 29. f5 {[%clk 0:01:29]}  Bd5 {[%clk 0:00:47]} 30. Rf4 {[%clk 0:00:59]}  Qf6 {[%clk 0:00:38]} 31. h3 {[%clk 0:00:54]}  Kf8 {[%clk 0:00:36]} 32. Qf2 {[%clk 0:00:54]}  Bc6 {[%clk 0:00:36]} 33. Rg4 {[%clk 0:00:49]}  h5 {[%clk 0:00:34]} 34. Rf4 {[%clk 0:00:46]}  Qg5 {[%clk 0:00:34]} 35. Kh2 {[%clk 0:00:46]}  Qf6 {[%clk 0:00:22]} 36. Qh4 {[%clk 0:00:39]}  Qxh4 {[%clk 0:00:18]} 37. Rxh4 {[%clk 0:00:39]}  Re8 {[%clk 0:00:19]} 38. Rxd4 {[%clk 0:00:34]}  Kg7 {[%clk 0:00:20]} 39. Kg3 {[%clk 0:00:34]}  Kf6 {[%clk 0:00:16]} 40. Rd6+ {[%clk 0:00:33]}  Ke5 {[%clk 0:00:17]} 41. Kf2 {[%clk 0:00:31]}  Rg8 {[%clk 0:00:16]} 42. g3 {[%clk 0:00:30]}  Rh8 {[%clk 0:00:08]} 43. Bxa6 {[%clk 0:00:28]}  Kxf5 {[%clk 0:00:05]} 44. Bd3+ {[%clk 0:00:29]}  Ke5 {[%clk 0:00:05]} 45. b5 {[%clk 0:00:29]}  Bd5 {[%clk 0:00:06]} 46. Ke3 {[%clk 0:00:22]}  Rc8 {[%clk 0:00:06]} 47. Rh6 {[%clk 0:00:22]}  Be6 {[%clk 0:00:02]} 48. Rxh5+ {[%clk 0:00:22]}  Kf6 {[%clk 0:00:03]} 49. c6 {[%clk 0:00:21]}  bxc6 {[%clk 0:00:03]} 50. Rc5 {[%clk 0:00:21]}  Bd5 {[%clk 0:00:03]} 51. bxc6 {[%clk 0:00:21]}  Bxc6 {[%clk 0:00:02]} 52. Kd2 {[%clk 0:00:21]}  Bd7 {[%clk 0:00:01]} 53. Rxc8 {[%clk 0:00:20]}  Bxc8 {[%clk 0:00:02]} 54. h4 {[%clk 0:00:20]}  Ke5 {[%clk 0:00:03]} 55. Ke3 {[%clk 0:00:21]}  f6 {[%clk 0:00:03]} 56. a4 {[%clk 0:00:20]}  Bd7 {[%clk 0:00:03]} 57. a5 {[%clk 0:00:21]}  Bc8 {[%clk 0:00:03]} 58. a6 {[%clk 0:00:20]} 1-0


[Site "https://www.chess.com"]

[Event "Titled Tuesday Blitz February 22 Early 2022"]
[White "Samunenkov, Ihor"]
[Black "Kadam, Om Manish"]
[WhiteFideId "14187086"]
[BlackFideId "45076294"]
[WhiteElo "2406"]
[BlackElo "1729"]
[Result "1-0"]
[Round "09"]
[TimeControl "180+1"]
[Date "2022.02.22"]
[WhiteClock "0:00:16"]
[BlackClock "0:00:31"]

1. d4 {[%clk 0:03:00]}  Nf6 {[%clk 0:02:58]} 2. c4 {[%clk 0:03:01]}  e6 {[%clk 0:02:58]} 3. Nc3 {[%clk 0:03:01]}  d5 {[%clk 0:02:58]} 4. cxd5 {[%clk 0:03:01]}  exd5 {[%clk 0:02:58]} 5. Bg5 {[%clk 0:03:02]}  Be7 {[%clk 0:02:58]} 6. e3 {[%clk 0:03:01]}  O-O {[%clk 0:02:58]} 7. Bd3 {[%clk 0:03:01]}  Nbd7 {[%clk 0:02:58]} 8. Nf3 {[%clk 0:02:50]}  c6 {[%clk 0:02:58]} 9. Qc2 {[%clk 0:02:48]}  Re8 {[%clk 0:02:59]} 10. O-O {[%clk 0:02:48]}  Nf8 {[%clk 0:02:59]} 11. Ne5 {[%clk 0:02:48]}  g6 {[%clk 0:02:58]} 12. f4 {[%clk 0:02:42]}  Ne6 {[%clk 0:02:58]} 13. g4 {[%clk 0:02:20]}  c5 {[%clk 0:01:06]} 14. Qf2 {[%clk 0:01:34]}  cxd4 {[%clk 0:01:00]} 15. exd4 {[%clk 0:01:34]}  Qb6 {[%clk 0:00:52]} 16. Bxf6 {[%clk 0:01:20]}  Bxf6 {[%clk 0:00:50]} 17. Nxd5 {[%clk 0:01:18]}  Qd8 {[%clk 0:00:40]} 18. Nxf6+ {[%clk 0:01:17]}  Qxf6 {[%clk 0:00:41]} 19. g5 {[%clk 0:01:00]}  Qd8 {[%clk 0:00:40]} 20. Ng4 {[%clk 0:00:52]}  Nxg5 {[%clk 0:00:19]} 21. fxg5 {[%clk 0:00:52]}  Bxg4 {[%clk 0:00:19]} 22. Qxf7+ {[%clk 0:00:52]}  Kh8 {[%clk 0:00:20]} 23. Qf4 {[%clk 0:00:44]}  Be2 {[%clk 0:00:20]} 24. Bxe2 {[%clk 0:00:30]}  Rxe2 {[%clk 0:00:21]} 25. Rae1 {[%clk 0:00:28]}  Qe8 {[%clk 0:00:21]} 26. Rxe2 {[%clk 0:00:17]}  Qxe2 {[%clk 0:00:22]} 27. Rf2 {[%clk 0:00:17]}  Qe1+ {[%clk 0:00:22]} 28. Kg2 {[%clk 0:00:18]}  Re8 {[%clk 0:00:23]} 29. Qf6+ {[%clk 0:00:15]}  Kg8 {[%clk 0:00:23]} 30. Qf7+ {[%clk 0:00:15]}  Kh8 {[%clk 0:00:24]} 31. Qxb7 {[%clk 0:00:16]}  Qe3 {[%clk 0:00:24]} 32. Qd5 {[%clk 0:00:13]}  Rb8 {[%clk 0:00:16]} 33. Qe5+ {[%clk 0:00:11]}  Qxe5 {[%clk 0:00:16]} 34. dxe5 {[%clk 0:00:12]}  Kg7 {[%clk 0:00:17]} 35. e6 {[%clk 0:00:11]}  Rb7 {[%clk 0:00:17]} 36. Rf7+ {[%clk 0:00:09]}  Rxf7 {[%clk 0:00:18]} 37. exf7 {[%clk 0:00:10]}  Kxf7 {[%clk 0:00:19]} 38. Kf3 {[%clk 0:00:11]}  Ke6 {[%clk 0:00:20]} 39. Ke4 {[%clk 0:00:11]}  a6 {[%clk 0:00:20]} 40. b4 {[%clk 0:00:10]}  Kd6 {[%clk 0:00:20]} 41. a4 {[%clk 0:00:10]}  Kc6 {[%clk 0:00:20]} 42. Ke5 {[%clk 0:00:10]}  Kb6 {[%clk 0:00:20]} 43. Kf6 {[%clk 0:00:09]}  Kc6 {[%clk 0:00:21]} 44. Kg7 {[%clk 0:00:09]}  Kd5 {[%clk 0:00:22]} 45. Kxh7 {[%clk 0:00:08]}  Kc4 {[%clk 0:00:22]} 46. b5 {[%clk 0:00:09]}  axb5 {[%clk 0:00:23]} 47. axb5 {[%clk 0:00:10]}  Kxb5 {[%clk 0:00:24]} 48. Kxg6 {[%clk 0:00:10]}  Kc5 {[%clk 0:00:25]} 49. h4 {[%clk 0:00:11]}  Kd5 {[%clk 0:00:26]} 50. h5 {[%clk 0:00:12]}  Ke5 {[%clk 0:00:26]} 51. h6 {[%clk 0:00:13]}  Kf4 {[%clk 0:00:27]} 52. h7 {[%clk 0:00:14]}  Kg4 {[%clk 0:00:28]} 53. h8=Q {[%clk 0:00:14]}  Kf4 {[%clk 0:00:29]} 54. Kf6 {[%clk 0:00:15]}  Kg4 {[%clk 0:00:30]} 55. g6 {[%clk 0:00:15]}  Kf4 {[%clk 0:00:30]} 56. g7 {[%clk 0:00:16]}  Kf3 {[%clk 0:00:31]} 1-0


[Site "https://www.chess.com"]

[Event "Titled Tuesday Blitz February 22 Early 2022"]
[White "Sanchez, Robert"]
[Black "Necula, Iulian"]
[WhiteFideId "2034360"]
[BlackFideId "1232380"]
[WhiteElo "2244"]
[BlackElo "1776"]
[Result "1-0"]
[Round "09"]
[TimeControl "180+1"]
[Date "2022.02.22"]
[WhiteClock "0:02:11"]
[BlackClock "0:00:09"]

1. e4 {[%clk 0:03:00]}  g6 {[%clk 0:02:59]} 2. d4 {[%clk 0:02:59]}  c6 {[%clk 0:03:00]} 3. Nc3 {[%clk 0:02:59]}  d5 {[%clk 0:03:00]} 4. Nf3 {[%clk 0:02:59]}  Bg4 {[%clk 0:02:59]} 5. h3 {[%clk 0:02:59]}  Bxf3 {[%clk 0:02:58]} 6. Qxf3 {[%clk 0:02:59]}  dxe4 {[%clk 0:02:58]} 7. Nxe4 {[%clk 0:02:56]}  Nf6 {[%clk 0:02:59]} 8. Nxf6+ {[%clk 0:02:56]}  exf6 {[%clk 0:02:59]} 9. Be3 {[%clk 0:02:55]}  Bg7 {[%clk 0:02:59]} 10. O-O-O {[%clk 0:02:55]}  O-O {[%clk 0:02:59]} 11. Kb1 {[%clk 0:02:56]}  Nd7 {[%clk 0:02:59]} 12. h4 {[%clk 0:02:55]}  h5 {[%clk 0:02:58]} 13. Bc4 {[%clk 0:02:54]}  Re8 {[%clk 0:02:58]} 14. g4 {[%clk 0:02:53]}  b5 {[%clk 0:02:57]} 15. Bb3 {[%clk 0:02:53]}  a5 {[%clk 0:02:57]} 16. a3 {[%clk 0:02:50]}  hxg4 {[%clk 0:02:50]} 17. Qxg4 {[%clk 0:02:49]}  a4 {[%clk 0:02:49]} 18. Ba2 {[%clk 0:02:49]}  f5 {[%clk 0:02:47]} 19. Qxg6 {[%clk 0:02:48]}  Qf6 {[%clk 0:02:42]} 20. Qg2 {[%clk 0:02:44]}  f4 {[%clk 0:02:40]} 21. Bc1 {[%clk 0:02:39]}  Rac8 {[%clk 0:02:28]} 22. Rdg1 {[%clk 0:02:37]}  Qxd4 {[%clk 0:00:43]} 23. Rd1 {[%clk 0:02:30]}  Qa7 {[%clk 0:00:33]} 24. Rhg1 {[%clk 0:02:23]}  Kf8 {[%clk 0:00:10]} 25. Qxg7+ {[%clk 0:02:21]}  Ke7 {[%clk 0:00:11]} 26. Qxf7+ {[%clk 0:02:18]}  Kd8 {[%clk 0:00:11]} 27. Rg8 {[%clk 0:02:14]}  Rxg8 {[%clk 0:00:10]} 28. Qxg8+ {[%clk 0:02:14]}  Kc7 {[%clk 0:00:11]} 29. Rxd7+ {[%clk 0:02:10]}  Kxd7 {[%clk 0:00:10]} 30. Qf7+ {[%clk 0:02:10]}  Kd6 {[%clk 0:00:09]} 31. Qxa7 {[%clk 0:02:11]}  Rc7 {[%clk 0:00:09]} 32. Bxf4+ {[%clk 0:02:11]} 1-0


[Site "https://www.chess.com"]

[Event "Titled Tuesday Blitz February 22 Early 2022"]
[White "Seifert, Henryk"]
[Black "Berdychevskaya, Natasha"]
[WhiteFideId "1100963"]
[BlackFideId "4159322"]
[WhiteElo "2120"]
[BlackElo "1780"]
[Result "0-1"]
[Round "09"]
[TimeControl "180+1"]
[Date "2022.02.22"]
[WhiteClock "0:00:25"]
[BlackClock "0:00:53"]

1. e4 {[%clk 0:03:00]}  e5 {[%clk 0:02:57]} 2. Nf3 {[%clk 0:02:59]}  Nf6 {[%clk 0:02:57]} 3. Nc3 {[%clk 0:02:59]}  Nc6 {[%clk 0:02:56]} 4. Bb5 {[%clk 0:02:58]}  Bb4 {[%clk 0:02:54]} 5. O-O {[%clk 0:02:56]}  O-O {[%clk 0:02:54]} 6. d3 {[%clk 0:02:55]}  Bxc3 {[%clk 0:02:51]} 7. bxc3 {[%clk 0:02:55]}  d6 {[%clk 0:02:52]} 8. Re1 {[%clk 0:02:45]}  h6 {[%clk 0:02:46]} 9. d4 {[%clk 0:02:40]}  Bd7 {[%clk 0:02:40]} 10. h3 {[%clk 0:02:00]}  Re8 {[%clk 0:02:32]} 11. d5 {[%clk 0:01:57]}  Ne7 {[%clk 0:02:27]} 12. Bxd7 {[%clk 0:01:56]}  Nxd7 {[%clk 0:02:23]} 13. Nh4 {[%clk 0:01:43]}  Nxd5 {[%clk 0:02:07]} 14. Qxd5 {[%clk 0:01:41]}  Qxh4 {[%clk 0:02:06]} 15. Qxb7 {[%clk 0:01:39]}  Nc5 {[%clk 0:01:57]} 16. Qc6 {[%clk 0:01:27]}  Rab8 {[%clk 0:01:37]} 17. Ba3 {[%clk 0:01:27]}  Ne6 {[%clk 0:01:31]} 18. Re3 {[%clk 0:00:49]}  Nf4 {[%clk 0:01:18]} 19. Rf3 {[%clk 0:00:48]}  Qg5 {[%clk 0:01:13]} 20. g4 {[%clk 0:00:27]}  h5 {[%clk 0:01:08]} 21. Qd7 {[%clk 0:00:26]}  hxg4 {[%clk 0:00:59]} 22. Qxg4 {[%clk 0:00:25]}  Nxh3+ {[%clk 0:00:53]} 0-1


[Site "https://www.chess.com"]